fUST/lending_fUST_20241130
["ID","MTS","AMOUNT","RATE_DAILY","PERIOD"]
[343735809,1732948251611,-500.0,0.00028767,3]
[343735810,1732948251620,-500.0,0.00028767,3]
[343735811,1732948251630,-529.06214756,0.00028767,3]
[343735812,1732948251640,-500.0,0.00028767,3]
[343735813,1732948251651,-182.60783417,0.00028767,3]
[343735814,1732948251659,-500.0,0.00028767,3]
[343735815,1732948251669,-500.0,0.00028767,3]
[343735816,1732948251679,-500.0,0.00028767,3]
[343735817,1732948251689,-500.0,0.00028767,3]
[343735818,1732948251699,-701.779485,0.00028767,7]
[343735819,1732948251709,-514.8244339,0.00028767,3]
[343735820,1732948251719,-701.779485,0.00028767,7]
[343735821,1732948251729,-701.779485,0.00028767,7]
[343735822,1732948251739,-701.779485,0.00028767,7]
[343735823,1732948251750,-701.779485,0.00028767,7]
[343735824,1732948251760,-701.779485,0.00028767,7]
[343735825,1732948251770,-500.0,0.00028767,3]
[343735826,1732948251779,-500.0,0.00028767,3]
[343735827,1732948251789,-701.779485,0.00028767,7]
[343735828,1732948251799,-500.0,0.00028767,3]
[343735829,1732948251809,-500.0,0.00028767,3]
[343735830,1732948251818,-701.779485,0.00028767,7]
[343735831,1732948251827,-500.0,0.00028767,3]
[343735832,1732948251836,-500.0,0.00028767,3]
[343735833,1732948251846,-604.90227436,0.00028767,3]
[343735834,1732948251855,-500.0,0.00028767,3]
[343735835,1732948251866,-701.779485,0.00028767,7]
[343735836,1732948251875,-500.0,0.00028767,3]
[343735837,1732948251885,-500.0,0.00028767,3]
[343735838,1732948251897,-500.0,0.00028767,3]
[343735839,1732948251906,-500.0,0.00028767,3]
[343735840,1732948251916,-701.779485,0.00028767,7]
[343735841,1732948251925,-500.0,0.00028767,3]
[343735842,1732948251935,-500.0,0.00028767,3]
[343735843,1732948251946,-701.779485,0.00028767,7]
[343735844,1732948251955,-500.0,0.00028767,3]
[343735845,1732948251965,-1526.13,0.00028767,3]
[343735846,1732948251975,-537.5053728,0.00028767,3]
[343735847,1732948251984,-500.0,0.00028767,3]
[343735848,1732948251994,-701.779485,0.00028767,7]
[343735849,1732948252003,-1526.13,0.00028767,3]
[343735850,1732948252013,-500.0,0.00028767,3]
[343735851,1732948252022,-376.86262266,0.00028767,3]
[343735852,1732948252032,-1526.13,0.00028767,3]
[343735853,1732948252041,-504.44834376,0.00028767,3]
[343735854,1732948252051,-213.1840208,0.00028767,7]
[343735948,1732949049399,165.863874,0.00013973,2]
[343735949,1732949207147,-300.0,0.00019999,2]
[343735950,1732949207168,-0.3734808,0.0002,2]
[343735969,1732949432480,-300.0,0.00019999,2]
[343735971,1732949432490,-300.0,0.00019999,2]
[343735973,1732949432500,-1168.89735253,0.0002,2]
[343735975,1732949432509,-2830.47153068,0.0002,2]
[343736008,1732949438317,-1291.49973452,0.0002,2]
[343736009,1732949438327,-165.863874,0.00021661,2]
[343736011,1732949438336,-420.0,0.00021777,2]
[343736014,1732949438352,-420.0,0.00021999,2]
[343736016,1732949438367,-587.0,0.00023712,2]
[343736018,1732949438378,-2775.7469114,0.00023987,2]
[343736020,1732949438388,-22071.0273562,0.00024143,2]
[343736022,1732949438398,-587.0,0.00024199,2]
[343736024,1732949438408,-1566.15367202,0.00024502,2]
[343736025,1732949438421,-620.8852542,0.00024502,2]
[343736027,1732949438431,-240.5549484,0.00024534,2]
[343736029,1732949438441,-283.1752678,0.00024647,2]
[343736031,1732949438451,-2759.56586,0.00024716,2]
[343736033,1732949438461,-823.0,0.0002582,2]
[343736035,1732949438471,-2178.0,0.00026551,2]
[343736037,1732949438481,-500.0,0.00026566,7]
[343736039,1732949438492,-168.183819,0.0002658,2]
[343736040,1732949438502,-823.0,0.00026619,2]
[343736042,1732949438512,-405.82954129,0.00026732,2]
[343736044,1732949438522,-250.0,0.00026816,2]
[343736046,1732949438532,-456.59814875,0.00026831,2]
[343736048,1732949438542,-500.0,0.00026831,2]
[343736050,1732949438552,-500.0,0.00026831,2]
[343736052,1732949438563,-284.27459119,0.00026831,2]
[343736054,1732949438573,-500.0,0.00026831,2]
[343736055,1732949438583,-500.0,0.00026831,2]
[343736057,1732949438593,-500.0,0.00026831,2]
[343736059,1732949438603,-500.0,0.00026831,2]
[343736061,1732949438612,-500.0,0.00026831,2]
[343736064,1732949438622,-500.0,0.00026831,2]
[343736066,1732949438633,-500.0,0.00026831,2]
[343736068,1732949438646,-500.0,0.00026831,2]
[343736070,1732949438656,-500.0,0.00026831,2]
[343736071,1732949438672,-500.0,0.00026831,2]
[343736073,1732949438683,-500.0,0.00026831,2]
[343736075,1732949438693,-500.0,0.00026831,2]
[343736077,1732949438703,-500.0,0.00026831,2]
[343736079,1732949438713,-500.0,0.00026831,2]
[343736081,1732949438723,-500.0,0.00026831,2]
[343736083,1732949438734,-500.0,0.00026831,2]
[343736085,1732949438744,-500.0,0.00026831,2]
[343736086,1732949438755,-500.0,0.00026831,2]
[343736088,1732949438764,-500.0,0.00026831,2]
[343736090,1732949438775,-500.0,0.00026831,2]
[343736092,1732949438785,-500.0,0.00026831,2]
[343736094,1732949438795,-500.0,0.00026831,2]
[343736096,1732949438804,-500.0,0.00026831,2]
[343736098,1732949438814,-500.0,0.00026831,2]
[343736100,1732949438825,-500.0,0.00026831,2]
[343736102,1732949438836,-500.0,0.00026831,2]
[343736103,1732949438845,-500.0,0.00026831,2]
[343736105,1732949438855,-500.0,0.00026831,2]
[343736107,1732949438865,-500.0,0.00026831,2]
[343736109,1732949438875,-205.54111005,0.00026831,2]
[343736111,1732949438885,-500.0,0.00026831,2]
[343736113,1732949438896,-500.0,0.00026831,2]
[343736115,1732949438906,-500.0,0.00026831,2]
[343736116,1732949438915,-500.0,0.00026831,2]
[343736118,1732949438927,-500.0,0.00026831,2]
[343736120,1732949438939,-500.0,0.00026831,2]
[343736122,1732949438959,-500.0,0.00026831,2]
[343736124,1732949438972,-500.0,0.00026831,2]
[343736126,1732949438982,-500.0,0.00026831,2]
[343736128,1732949438991,-500.0,0.00026831,2]
[343736130,1732949439002,-500.0,0.00026831,2]
[343736132,1732949439012,-500.0,0.00026831,2]
[343736133,1732949439023,-500.0,0.00026831,2]
[343736135,1732949439040,-500.0,0.00026831,2]
[343736137,1732949439050,-500.0,0.00026831,2]
[343736139,1732949439060,-500.0,0.00026831,2]
[343736141,1732949439069,-500.0,0.00026831,2]
[343736143,1732949439079,-500.0,0.00026831,2]
[343736144,1732949439089,-500.0,0.00026831,2]
[343736146,1732949439099,-500.0,0.00026831,2]
[343736148,1732949439108,-500.0,0.00026831,2]
[343736150,1732949439118,-500.0,0.00026831,2]
[343736152,1732949439127,-500.0,0.00026831,2]
[343736154,1732949439138,-500.0,0.00026831,2]
[343736155,1732949439147,-500.0,0.00026831,2]
[343736157,1732949439157,-500.0,0.00026831,2]
[343736159,1732949439167,-500.0,0.00026831,2]
[343736161,1732949439177,-500.0,0.00026831,2]
[343736163,1732949439187,-500.0,0.00026831,2]
[343736165,1732949439197,-500.0,0.00026831,2]
[343736166,1732949439206,-500.0,0.00026831,2]
[343736168,1732949439216,-500.0,0.00026831,2]
[343736170,1732949439225,-500.0,0.00026831,2]
[343736172,1732949439238,-500.0,0.00026831,2]
[343736174,1732949439248,-500.0,0.00026831,2]
[343736176,1732949439258,-500.0,0.00026831,2]
[343736178,1732949439268,-500.0,0.00026831,2]
[343736179,1732949439278,-500.0,0.00026831,2]
[343736181,1732949439288,-500.0,0.00026831,2]
[343736183,1732949439297,-500.0,0.00026831,2]
[343736185,1732949439308,-500.0,0.00026831,2]
[343736187,1732949439318,-500.0,0.00026831,2]
[343736189,1732949439327,-500.0,0.00026831,2]
[343736191,1732949439337,-637.71305869,0.00026831,2]
[343736192,1732949439347,-500.0,0.00026831,2]
[343736194,1732949439357,-500.0,0.00026831,2]
[343736196,1732949439367,-500.0,0.00026831,2]
[343736198,1732949439377,-500.0,0.00026831,2]
[343736200,1732949439387,-500.0,0.00026831,2]
[343736202,1732949439397,-500.0,0.00026831,2]
[343736203,1732949439406,-500.0,0.00026831,2]
[343736205,1732949439416,-628.24764906,0.00026831,2]
[343736207,1732949439427,-196.38098073,0.00026832,2]
[343736209,1732949439437,-3783.67427955,0.00026834,2]
[343736211,1732949439446,-374.86,0.00026839,3]
[343736213,1732949439456,-405.82954125,0.00027258,2]
[343736214,1732949439465,-500.0,0.00027397,2]
[343736216,1732949439475,-469.09,0.00027432,10]
[343736218,1732949439485,-497.76,0.00027432,10]
[343736220,1732949439495,-3112.2839636,0.00027442,2]
[343736222,1732949439505,-597.31,0.0002769,10]
[343736224,1732949439515,-2029.95,0.000277,2]
[343736225,1732949439524,-405.82954125,0.00027784,2]
[343736227,1732949439534,-618.0,0.000278,2]
[343736229,1732949439544,-414.8,0.0002799,10]
[343736231,1732949439554,-1881.96658484,0.00028,3]
[343736299,1732949440303,-7688.49229497,0.00028,3]
[343736304,1732949440377,-14575.2286934,0.00028,3]
[343736323,1732949443568,-33.3748312,0.00028,3]
[343736324,1732949443580,-435.68848965,0.00028,3]
[343736325,1732949443606,-19838.16225689,0.00028,3]
[343736326,1732949443616,-1169.27083333,0.00028,3]
[343736327,1732949443625,-1169.27083333,0.00028,3]
[343736328,1732949443635,-1169.27083333,0.00028,3]
[343736329,1732949443645,-1152.0,0.00028115,2]
[343736330,1732949443657,-500.0,0.0002821,7]
[343736331,1732949443666,-405.82954125,0.0002831,2]
[343736332,1732949443678,-4764.14792717,0.00028401,7]
[343736334,1732949443687,-151.0,0.00028471,2]
[343736335,1732949443697,-3200.0,0.00028471,2]
[343736336,1732949443706,-382.98,0.000286,31]
[343736337,1732949443715,-382.98,0.000286,31]
[343736338,1732949443724,-382.98,0.000286,31]
[343736339,1732949443735,-382.98,0.000286,31]
[343736340,1732949443745,-382.98,0.000286,31]
[343736341,1732949443754,-382.98,0.000286,31]
[343736342,1732949443764,-382.98,0.000286,31]
[343736343,1732949443773,-382.98,0.000286,31]
[343736344,1732949443782,-382.98,0.000286,31]
[343736345,1732949443791,-382.98,0.000286,31]
[343736346,1732949443800,-382.98,0.000286,31]
[343736347,1732949443810,-382.98,0.000286,31]
[343736348,1732949443820,-160.229235,0.00028667,7]
[343736349,1732949443829,-160.229235,0.00028667,7]
[343736350,1732949443838,-164.445,0.00028667,20]
[343736351,1732949443847,-2149.44352272,0.00028667,2]
[343736352,1732949443856,-666.0,0.00028667,2]
[343736353,1732949443866,-184.562165,0.000287,7]
[343736354,1732949443876,-184.562165,0.000287,7]
[343736355,1732949443885,-165.161263,0.0002875,7]
[343736356,1732949443894,-165.161263,0.0002875,7]
[343736357,1732949443903,-345.67,0.00028757,10]
[343736358,1732949443913,-483.86125538,0.00028766,2]
[343736359,1732949443924,-172.6680817,0.00028767,2]
[343736360,1732949443933,-3061.59710652,0.00028767,2]
[343736361,1732949443943,-151.0,0.00028767,7]
[343736362,1732949443952,-151.0,0.00028767,7]
[343736363,1732949443962,-151.0,0.00028767,7]
[343736364,1732949443971,-151.0,0.00028767,7]
[343736365,1732949443981,-151.0,0.00028767,7]
[343736366,1732949443991,-151.0,0.00028767,7]
[343736367,1732949444001,-170.652395,0.00028767,7]
[343736368,1732949444011,-160.229235,0.00028767,7]
[343736369,1732949444020,-160.229235,0.00028767,7]
[343736370,1732949444030,-160.229235,0.00028767,7]
[343736371,1732949444040,-160.229235,0.00028767,7]
[343736372,1732949444049,-160.229235,0.00028767,7]
[343736373,1732949444059,-160.229235,0.00028767,7]
[343736374,1732949444069,-160.229235,0.00028767,7]
[343736375,1732949444079,-160.229235,0.00028767,7]
[343736376,1732949444088,-160.229235,0.00028767,7]
[343736377,1732949444097,-160.229235,0.00028767,7]
[343736378,1732949444107,-160.229235,0.00028767,7]
[343736379,1732949444116,-160.229235,0.00028767,7]
[343736380,1732949444126,-160.229235,0.00028767,7]
[343736381,1732949444135,-160.229235,0.00028767,7]
[343736382,1732949444145,-160.229235,0.00028767,7]
[343736383,1732949444155,-160.229235,0.00028767,7]
[343736384,1732949444165,-160.229235,0.00028767,7]
[343736385,1732949444177,-160.229237,0.00028767,7]
[343736386,1732949444186,-184.562165,0.00028767,7]
[343736387,1732949444198,-184.562165,0.00028767,7]
[343736388,1732949444207,-184.562165,0.00028767,7]
[343736389,1732949444216,-184.562165,0.00028767,7]
[343736390,1732949444225,-184.562165,0.00028767,7]
[343736391,1732949444235,-184.562165,0.00028767,7]
[343736392,1732949444244,-184.562165,0.00028767,7]
[343736393,1732949444254,-184.562165,0.00028767,7]
[343736394,1732949444263,-184.562165,0.00028767,7]
[343736395,1732949444273,-184.562165,0.00028767,7]
[343736396,1732949444283,-184.562165,0.00028767,7]
[343736397,1732949444293,-184.562165,0.00028767,7]
[343736398,1732949444303,-184.562165,0.00028767,7]
[343736399,1732949444313,-184.562165,0.00028767,7]
[343736400,1732949444323,-184.562165,0.00028767,7]
[343736401,1732949444333,-184.562165,0.00028767,7]
[343736402,1732949444342,-184.562165,0.00028767,7]
[343736403,1732949444351,-184.56217,0.00028767,7]
[343736404,1732949444361,-165.161263,0.00028767,7]
[343736405,1732949444371,-165.161263,0.00028767,7]
[343736406,1732949444382,-165.161263,0.00028767,7]
[343736407,1732949444391,-165.161263,0.00028767,7]
[343736408,1732949444402,-165.161263,0.00028767,7]
[343736409,1732949444412,-165.161263,0.00028767,7]
[343736410,1732949444424,-165.161263,0.00028767,7]
[343736411,1732949444433,-165.161263,0.00028767,7]
[343736412,1732949444443,-165.161263,0.00028767,7]
[343736413,1732949444452,-165.161263,0.00028767,7]
[343736414,1732949444462,-165.161263,0.00028767,7]
[343736415,1732949444471,-165.161263,0.00028767,7]
[343736416,1732949444481,-165.161263,0.00028767,7]
[343736417,1732949444491,-165.161263,0.00028767,7]
[343736418,1732949444500,-165.161263,0.00028767,7]
[343736419,1732949444510,-165.161263,0.00028767,7]
[343736420,1732949444519,-165.161263,0.00028767,7]
[343736421,1732949444529,-165.161256,0.00028767,7]
[343736422,1732949444539,-500.0,0.00028767,3]
[343736423,1732949444548,-500.0,0.00028767,3]
[343736424,1732949444558,-508.55187045,0.00028767,3]
[343736425,1732949444568,-320.23374832,0.00028767,3]
[343736426,1732949444577,-541.38459804,0.00028767,3]
[343736427,1732949444587,-500.0,0.00028767,3]
[343736428,1732949444596,-500.0,0.00028767,3]
[343736429,1732949444606,-500.0,0.00028767,3]
[343736430,1732949444615,-500.0,0.00028767,3]
[343736431,1732949444625,-500.0,0.00028767,3]
[343736432,1732949444635,-500.0,0.00028767,3]
[343736433,1732949444648,-500.0,0.00028767,3]
[343736434,1732949444658,-500.0,0.00028767,3]
[343736435,1732949444667,-500.0,0.00028767,3]
[343736436,1732949444680,-500.0,0.00028767,3]
[343736437,1732949444691,-500.0,0.00028767,3]
[343736438,1732949444700,-500.0,0.00028767,3]
[343736439,1732949444710,-500.0,0.00028767,3]
[343736440,1732949444719,-500.0,0.00028767,3]
[343736441,1732949444729,-500.0,0.00028767,3]
[343736442,1732949444739,-500.0,0.00028767,3]
[343736443,1732949444748,-500.0,0.00028767,3]
[343736444,1732949444757,-395.68496778,0.00028767,3]
[343736445,1732949444767,-529.99364696,0.00028767,3]
[343736446,1732949444776,-500.0,0.00028767,3]
[343736447,1732949444786,-500.0,0.00028767,3]
[343736448,1732949444795,-604.49411708,0.00028767,3]
[343736449,1732949444805,-500.0,0.00028767,3]
[343736450,1732949444817,-500.0,0.00028767,3]
[343736451,1732949444828,-500.0,0.00028767,3]
[343736452,1732949444838,-500.0,0.00028767,3]
[343736453,1732949444847,-500.0,0.00028767,3]
[343736454,1732949444859,-500.0,0.00028767,3]
[343736455,1732949444869,-500.0,0.00028767,3]
[343736456,1732949444878,-498.93764314,0.00028767,3]
[343736457,1732949444887,-500.0,0.00028767,3]
[343736458,1732949444896,-640.79301632,0.00028767,3]
[343736459,1732949444905,-500.0,0.00028767,3]
[343736460,1732949444915,-500.0,0.00028767,3]
[343736461,1732949444927,-500.0,0.00028767,3]
[343736462,1732949444937,-500.0,0.00028767,3]
[343736463,1732949444948,-500.0,0.00028767,3]
[343736464,1732949444958,-500.0,0.00028767,3]
[343736465,1732949444968,-568.64899925,0.00028767,3]
[343736466,1732949444977,-500.0,0.00028767,3]
[343736467,1732949444986,-25.20324839,0.00028767,3]
[343736488,1732949727177,165.682086,0.00013973,2]
[343736492,1732950262000,1000.0,0.00026,30]
[343736493,1732950277395,1000.0,0.00026,60]
[343736494,1732950310953,169.4493096,0.00013973,2]
[343736496,1732950550151,-1169.27083333,0.0002,2]
[343736497,1732950550174,-500.0,0.00021167,2]
[343736498,1732950550197,-165.682086,0.00022174,2]
[343736499,1732950550218,-1053.8595683,0.00023199,2]
[343736500,1732950550240,-230.869611,0.00023841,2]
[343736501,1732950550260,-500.0,0.00023973,2]
[343736502,1732950550281,-366.94440381,0.00023973,2]
[343736503,1732950550303,-500.0,0.00023973,2]
[343736504,1732950550326,-300.0,0.00023997,2]
[343736505,1732950550348,-6192.51222196,0.00023997,2]
[343736562,1732950635482,-168.4322,0.00023089,2]
[343736563,1732950635492,-300.0,0.00023972,2]
[343736564,1732950635501,-14323.29769859,0.00023972,2]
[343736565,1732950635513,-7894.46835876,0.00023972,2]
[343736566,1732950635577,-1771.28104361,0.00023972,2]
[343736836,1732950638555,-12197.95289904,0.00023972,2]
[343736837,1732950638565,-500.75516099,0.00023973,2]
[343736838,1732950638575,-1169.27083333,0.00023973,2]
[343736839,1732950638584,-500.0,0.00023997,2]
[343736840,1732950638594,-500.0,0.00023997,2]
[343736841,1732950638604,-500.0,0.00023997,2]
[343736842,1732950638614,-500.0,0.00023997,2]
[343736843,1732950638623,-500.0,0.00023997,2]
[343736844,1732950638633,-500.0,0.00023997,2]
[343736845,1732950638643,-500.0,0.00023997,2]
[343736846,1732950638652,-500.0,0.00023997,2]
[343736847,1732950638662,-500.0,0.00023997,2]
[343736848,1732950638671,-500.0,0.00023997,2]
[343736849,1732950638680,-500.0,0.00023997,2]
[343736850,1732950638690,-500.0,0.00023997,2]
[343736851,1732950638699,-500.0,0.00023997,2]
[343736852,1732950638711,-500.0,0.00023997,2]
[343736853,1732950638732,-500.0,0.00023997,2]
[343736854,1732950638741,-500.0,0.00023997,2]
[343736855,1732950638751,-500.0,0.00023997,2]
[343736856,1732950638760,-500.0,0.00023997,2]
[343736857,1732950638770,-269.45897162,0.00023997,2]
[343736858,1732950638779,-500.0,0.00023997,2]
[343736859,1732950638788,-538.06695335,0.00023997,2]
[343736860,1732950638797,-354.67819014,0.00023997,2]
[343736861,1732950638807,-500.0,0.00023997,2]
[343736862,1732950638816,-500.0,0.00023997,2]
[343736863,1732950638825,-500.0,0.00023997,2]
[343736864,1732950638834,-500.0,0.00023997,2]
[343736865,1732950638843,-500.0,0.00023997,2]
[343736866,1732950638852,-500.0,0.00023997,2]
[343736867,1732950638862,-293.07089097,0.00023997,2]
[343736868,1732950638871,-500.0,0.00023997,2]
[343736869,1732950638880,-500.0,0.00023997,2]
[343736870,1732950638890,-500.0,0.00023997,2]
[343736871,1732950638899,-500.0,0.00023997,2]
[343736872,1732950638909,-242.88438585,0.00023997,2]
[343736873,1732950638918,-500.0,0.00023997,2]
[343736874,1732950638928,-500.0,0.00023997,2]
[343736875,1732950638938,-500.0,0.00023997,2]
[343736876,1732950638951,-500.0,0.00023997,2]
[343736877,1732950638961,-500.0,0.00023997,2]
[343736878,1732950638972,-306.93845064,0.00023997,2]
[343736879,1732950638983,-500.0,0.00023997,2]
[343736880,1732950638992,-500.0,0.00023997,2]
[343736881,1732950639001,-500.0,0.00023997,2]
[343736882,1732950639011,-500.0,0.00023997,2]
[343736883,1732950639021,-500.0,0.00023997,2]
[343736884,1732950639031,-434.16651834,0.00023997,2]
[343736885,1732950639040,-500.0,0.00023997,2]
[343736886,1732950639050,-500.0,0.00023997,2]
[343736887,1732950639059,-500.0,0.00023997,2]
[343736888,1732950639069,-500.0,0.00023997,2]
[343736889,1732950639079,-84.42943445,0.00023997,2]
[343736939,1732950643911,-415.57056555,0.00023997,2]
[343736940,1732950643921,-500.0,0.00023997,2]
[343736941,1732950643931,-500.0,0.00023997,2]
[343736942,1732950643944,-500.0,0.00023997,2]
[343736943,1732950643955,-500.0,0.00023997,2]
[343736944,1732950643964,-37.25854383,0.00023997,2]
[343736945,1732950643978,-462.74145617,0.00023997,2]
[343736946,1732950643989,-500.0,0.00023997,2]
[343736947,1732950643998,-500.0,0.00023997,2]
[343736948,1732950644007,-8.57425412,0.00023997,2]
[343736949,1732950644020,-316.49559678,0.00023997,2]
[343736975,1732950897462,-1169.27083333,0.00021589,2]
[343736976,1732950897492,-257.64919381,0.000219,2]
[343736977,1732950897523,-170.0,0.00022,2]
[343736978,1732950897554,-392.41578,0.00022467,2]
[343736979,1732950897573,-300.0,0.00022974,2]
[343736980,1732950897583,-300.0,0.00022974,2]
[343736981,1732950897592,-569.27083333,0.00022975,2]
[343736982,1732950897603,-257.64919381,0.00022975,2]
[343736983,1732950897615,-170.0,0.00022975,2]
[343736984,1732950897626,-392.41578,0.00022975,2]
[343736985,1732950897641,-21.32838572,0.00022975,2]
[343736987,1732950979354,-1169.27083333,0.00021589,2]
[343736988,1732950979387,-171.0,0.00022,2]
[343736989,1732950979419,-300.0,0.00022974,2]
[343736990,1732950979583,-300.0,0.00022974,2]
[343736992,1732951129514,165.909111,0.00013973,2]
[343736994,1732951600106,-201.65765004,0.0002,2]
[343736996,1732951724374,11480.54152174,0.000109,2]
[343736997,1732951724409,281.14145379,0.000109,2]
[343736999,1732951791632,166.121001,0.00013973,2]
[343737015,1732951832780,-526.36538966,0.000198,2]
[343737016,1732951832790,-300.0,0.00019989,2]
[343737017,1732951832800,-300.0,0.00019989,2]
[343737018,1732951832809,-2807.36377701,0.0001999,2]
[343737019,1732951832820,-27119.99365605,0.0001999,2]
[343737020,1732951832829,-6628.34234996,0.0002,2]
[343737021,1732951832838,-1169.27083333,0.0002,2]
[343737022,1732951832847,-196.20789,0.00020388,2]
[343737024,1732951832857,-5722.52956032,0.00021,5]
[343737025,1732951832866,-1514.30162018,0.00021,2]
[343737026,1732951832875,-152.0,0.00021368,2]
[343737027,1732951832884,-420.0,0.00021766,2]
[343737028,1732951832894,-500.0,0.00021773,2]
[343737029,1732951832904,-500.0,0.00021773,2]
[343737030,1732951832913,-500.0,0.00021773,2]
[343737031,1732951832923,-501.12072527,0.00021773,2]
[343737032,1732951832933,-500.0,0.00021773,2]
[343737033,1732951832943,-5000.0,0.00021792,2]
[343737034,1732951832952,-500.0,0.00021792,2]
[343737035,1732951832962,-500.0,0.00021792,2]
[343737036,1732951832973,-500.0,0.00021792,2]
[343737037,1732951832983,-500.0,0.00021792,2]
[343737038,1732951832992,-500.0,0.00021792,2]
[343737039,1732951833002,-500.0,0.00021792,2]
[343737040,1732951833012,-500.0,0.00021792,2]
[343737041,1732951833022,-500.0,0.00021792,2]
[343737042,1732951833032,-500.0,0.00021792,2]
[343737043,1732951833042,-500.0,0.00021792,2]
[343737044,1732951833052,-500.0,0.00021792,2]
[343737045,1732951833061,-500.0,0.00021792,2]
[343737046,1732951833071,-236.00705319,0.00021792,2]
[343737047,1732951833081,-500.0,0.00021792,2]
[343737048,1732951833091,-500.0,0.00021792,2]
[343737049,1732951833100,-500.0,0.00021792,2]
[343737050,1732951833109,-500.0,0.00021792,2]
[343737051,1732951833119,-500.0,0.00021792,2]
[343737052,1732951833129,-500.0,0.00021792,2]
[343737053,1732951833138,-500.0,0.00021792,2]
[343737054,1732951833148,-500.0,0.00021792,2]
[343737055,1732951833158,-500.0,0.00021792,2]
[343737056,1732951833168,-500.0,0.00021792,2]
[343737057,1732951833177,-500.0,0.00021792,2]
[343737058,1732951833187,-500.0,0.00021792,2]
[343737059,1732951833196,-211.95621333,0.00021792,2]
[343737060,1732951833206,-500.0,0.00021792,2]
[343737061,1732951833217,-500.0,0.00021792,2]
[343737062,1732951833229,-500.0,0.00021792,2]
[343737063,1732951833238,-500.0,0.00021792,2]
[343737064,1732951833247,-500.0,0.00021792,2]
[343737065,1732951833257,-500.0,0.00021792,2]
[343737066,1732951833266,-500.0,0.00021792,2]
[343737067,1732951833275,-500.0,0.00021792,2]
[343737068,1732951833285,-500.0,0.00021792,2]
[343737069,1732951833295,-500.0,0.00021792,2]
[343737070,1732951833305,-500.0,0.00021792,2]
[343737071,1732951833314,-500.0,0.00021792,2]
[343737072,1732951833324,-500.0,0.00021792,2]
[343737073,1732951833334,-500.0,0.00021792,2]
[343737074,1732951833343,-500.0,0.00021792,2]
[343737075,1732951833352,-500.0,0.00021792,2]
[343737076,1732951833362,-229.10786209,0.00021792,2]
[343737077,1732951833371,-500.0,0.00021792,2]
[343737078,1732951833381,-500.0,0.00021792,2]
[343737079,1732951833390,-500.0,0.00021792,2]
[343737080,1732951833400,-500.0,0.00021792,2]
[343737081,1732951833410,-500.0,0.00021792,2]
[343737082,1732951833420,-500.0,0.00021792,2]
[343737083,1732951833429,-500.0,0.00021792,2]
[343737084,1732951833443,-500.0,0.00021792,2]
[343737085,1732951833453,-500.0,0.00021792,2]
[343737086,1732951833463,-500.0,0.00021792,2]
[343737087,1732951833475,-500.0,0.00021792,2]
[343737088,1732951833485,-500.0,0.00021792,2]
[343737089,1732951833495,-500.0,0.00021792,2]
[343737091,1732951833505,-500.0,0.00021792,2]
[343737093,1732951833516,-500.0,0.00021792,2]
[343737095,1732951833528,-500.0,0.00021792,2]